Cogmind - Beta 14 @@@ ROGUE MODE // 2024.08.12 @ 17:27:12 Player: Sgt. SmokeWeed Result: Self-destructed Performance ------------- Evolutions (1) 500 Regions Visited (4) 800 Robots Destroyed (39) 195 Value Destroyed (1042) 1042 Prototype IDs (1) 20 Alien Tech Used (0) 0 Bonus (0) 0 TOTAL SCORE: 2557 Bonus ------- None Cogmind --------- Core Integrity 93/400 Matter 300/300 Energy 265/265 System Corruption 0% Temperature Cool (35) Movement Core (150) Ox2 Location -9/Mines Parts ------- > --- POWER (1) -------- Improved Ion Engine > --- PROPULSION (2) --- (None) > --- UTILITY (4) ------ Heat Sink > --- WEAPON (2) ------- (None) > --- INVENTORY (5) ---- Improved Ion Engine Cooled Ion Engine Light Treads Peak State ------------ > --- POWER ------------ Ion Engine > --- PROPULSION ------- Light Treads Light Treads > --- UTILITY ---------- Medium Armor Plating Medium Armor Plating Medium Armor Plating Medium Armor Plating > --- WEAPON ----------- Beam Rifle Beam Rifle > --- INVENTORY -------- Light Treads Beam Rifle Beam Rifle Particle Gun Particle Gun [Rating: 15] Favorites ----------- Power Ion Engine Engine Ion Engine Propulsion Light Treads Treads Light Treads Utility Medium Armor Plating Device Heat Sink Protection Medium Armor Plating Weapon Beam Rifle Energy Gun Beam Rifle Ballistic Gun Light Assault Rifle Launcher Grenade Launcher Build | -11 -10 -10 -9 -9 ------- Run | Yrd Mat Min Mat Min Slots Evolved 2 | . . . 2 . Power . | . . . . . Propulsion . | . . . . . Utility 2 | . . . 2 . Weapon . | . . . . . Parts Attached 40 | 5 . 3 30 2 Power 5 | 1 . . 4 . Engine 5 | 1 . . 4 . Core . | . . . . . Reactor . | . . . . . Propulsion 11 | 2 . . 9 . Treads 11 | 2 . . 9 . Leg . | . . . . . Wheel . | . . . . . Hover . | . . . . . Flight . | . . . . . Utility 10 | . . 1 9 . Device 5 | . . 1 4 . Storage . | . . . . . Processor . | . . . . . Hackware . | . . . . . Protection 5 | . . . 5 . Artifact . | . . . . . Weapon 14 | 2 . 2 8 2 Energy Gun 11 | . . 1 8 2 Energy Cannon . | . . . . . Ballistic Gun 2 | 2 . . . . Ballistic Cannon . | . . . . . Launcher 1 | . . 1 . . Special Weapon . | . . . . . Impact Weapon . | . . . . . Slashing Weapon . | . . . . . Piercing Weapon . | . . . . . Special Melee Weapon . | . . . . . Unidentified Prototypes 1 | . . . 1 . Parts Lost 19 | . . . 13 6 Power 1 | . . . 1 . Propulsion 4 | . . . 3 1 Utility 7 | . . . 6 1 Weapon 7 | . . . 3 4 Highest Loss Streak 5 | . . . 5 4 To Critical Strikes . | . . . . . Average Slot Usage (%) 77 | . 71 72 80 65 Engine 11 | . 14 14 10 11 Treads 20 | . 28 28 20 11 Device 9 | . . 1 8 22 Protection 13 | . . . 18 . Energy Gun 17 | . . 1 20 21 Ballistic Gun 3 | . 28 19 . . Launcher 1 | . . 7 1 . Peak Build Rating 15 | 5 5 7 15 10 Average Rating 10 | 4 5 5 12 9 On Entrance 5 | . 5 5 7 10 Naked Turns . | . . . . . Heaviest Build 39 | 7 7 12 39 15 Greatest Support 40 | 40 40 40 40 20 Greatest Overweight (x) 5 | 1 . . 5 . Average Overweight (x) . | . . . . . Largest Inventory Capacity 5 | 5 5 5 5 5 Average Capacity 5 | 5 5 5 5 5 Most Carried 5 | . . . 5 5 Average Carried 3 | . . . 4 3 Final Capacity 5 | 5 5 5 5 5 Final Carried 5 | . . . 5 3 Class Distribution -------------------- 74% | Mutant 25% | Scavenger-Mutant Dominant Class ---------------- Mutant | -10/Materials Mutant | -10/Mines Mutant | -9/Materials Scavenger-Mutant | -9/Mines Resources | -11 -10 -10 -9 -9 ----------- Run | Yrd Mat Min Mat Min Matter Collected 715 | 204 82 28 337 64 Remotely . | . . . . . Salvage Created 1413 | . 151 79 1134 49 Parts 73 | . 10 6 56 1 Haulers Intercepted 1 | . . . 1 . Recyclers Shooed 3 | . 1 . 2 . Parts Field Recycled . | . . . . . Retrieved Matter . | . . . . . Parts Self-Destructed . | . . . . . Prevented . | . . . . . Kills | -11 -10 -10 -9 -9 ------- Run | Yrd Mat Min Mat Min Combat Hostiles Destroyed 32 | . 5 2 24 1 Guns 27 | . 5 1 20 1 AOE 3 | . . 1 2 . Classes Destroyed 9 | . 4 . 5 . Worker 2 | . 1 . 1 . Hauler 1 | . . . 1 . Recycler 2 | . . . 2 . Watcher 2 | . 1 . 1 . Swarmer 11 | . 3 . 8 . Grunt 10 | . 2 2 5 1 Brawler 1 | . . . 1 . Duelist 1 | . . . 1 . Sentry 9 | . . . 9 . Best Kill Streak 4 | . 4 2 3 1 Combat Bots Only 3 | . 3 2 3 1 Max Kills in Single Turn 1 | . 1 1 1 1 Gunslinging . | . . . . . Exploded 1 | . . 1 1 . Melee . | . . . . . Uniques/NPCs Destroyed . | . . . . . Combat | -11 -10 -10 -9 -9 -------- Run | Yrd Mat Min Mat Min Hostile Shots Fired 279 | . 37 3 207 32 Missed 80 | . 11 . 60 9 Damage Taken 2574 | . 279 42 1925 328 Core 369 | . 53 9 263 44 Absorbed by Shields . | . . . . . Core Remaining (%) 87 | 100 . 75 . . Volleys Fired 151 | . 24 3 116 8 Largest 2 | . 2 2 2 2 Hottest 130 | . 40 50 121 130 Shots Fired 281 | . 48 6 215 12 Gun 274 | . 48 3 211 12 Cannon . | . . . . . Launcher 7 | . . 3 4 . Special . | . . . . . Kinetic 51 | . 48 3 . . Thermal 223 | . . . 211 12 Explosive 7 | . . 3 4 . Electromagnetic . | . . . . . Robot Hit Streak 14 | . 7 2 14 9 Robot Miss Streak 5 | . 4 3 5 2 Penetration Max . | . . . . . Secondary Targets 5 | . 1 . 4 . Max Gunslinging Chain 1 | . 1 . 1 . Shots Hit Robots 180 | . 31 2 139 8 Core Hits 70 | . 11 3 52 4 Critical Kills . | . . . . . Critical Parts Destroyed . | . . . . . Critical Strikes 15 | . . . 14 1 Burn 15 | . . . 14 1 Melee Attacks . | . . . . . Impact . | . . . . . Slashing . | . . . . . Piercing . | . . . . . Sneak Attacks . | . . . . . Combat Hostiles . | . . . . . Follow-up Attacks . | . . . . . Damage Inflicted 2673 | 1 273 86 2150 163 Guns 2474 | . 261 10 2049 154 Cannons . | . . . . . Explosions 164 | . . 76 88 . Melee . | . . . . . Ramming 35 | 1 12 . 13 9 Kinetic 271 | . 261 10 . . Thermal 2203 | . . . 2049 154 Explosive 164 | . . 76 88 . Electromagnetic . | . . . . . Impact . | . . . . . Slashing . | . . . . . Piercing . | . . . . . Highest Corruption . | . . . . . Average Corruption . | . . . . . Corruption Purged . | . . . . . Corruption Blocked . | . . . . . Overload Shots . | . . . . . Overflow Damage 20 | . . . 20 . Projectiles . | . . . . . Explosions 20 | . . . 20 . Melee . | . . . . . Knockbacks . | . . . . . Impact . | . . . . . Kinetic . | . . . . . Secondary . | . . . . . Self-Inflicted Damage 113 | . . 10 103 . Shots 3 | . . 1 2 . Rammed 8 | 1 2 . 4 1 Targets Rammed 9 | 1 3 . 4 1 Kicked . | . . . . . Crushed 1 | . 1 . . . Highest Temperature 511 | . 12 16 511 26 Average Temperature 152 | . 6 9 167 11 Received Heat Transfer 792 | . 84 18 540 150 Effects 10 | . . . 10 . Shutdowns 5 | . . . 5 . Interference 4 | . . . 4 . Matter Decay 1 | . . . 1 . Siege Activations . | . . . . . Robots Corrupted . | . . . . . Combat Hostiles . | . . . . . Parts Fried . | . . . . . Impact Corruptions . | . . . . . Robots Melted 2 | . . . 2 . Combat Hostiles 2 | . . . 2 . Parts Melted 22 | . . . 22 . Heat Transferred 6600 | . . . 6156 444 Parts Sabotaged . | . . . . . Parts Stolen . | . . . . . Parts Stripped . | . . . . . Power Chain Reactions . | . . . . . Alert | -11 -10 -10 -9 -9 ------- Run | Yrd Mat Min Mat Min Peak Influence 359 | . 177 140 359 97 Initial 87 | . . 69 54 87 Average 99 | . 68 87 110 93 Maximum Alert Level 1 | . . . 1 . Low Security (%) 87 | 100 100 100 81 100 Level 1 12 | . . . 18 . Level 2 . | . . . . . Level 3 . | . . . . . Level 4 . | . . . . . Level 5 . | . . . . . High Security . | . . . . . Max Security . | . . . . . Squads Dispatched 3 | . 1 . 2 . Investigation 1 | . . . 1 . Extermination . | . . . . . Reinforcement 2 | . 1 . 1 . Assault . | . . . . . Garrison . | . . . . . Intercept . | . . . . . Searches Triggered . | . . . . . Construction Impeded 1 | . . . 1 . Haulers Reinforced . | . . . . . Active Scanning Responses . | . . . . . Cargo Convoy Interrupts . | . . . . . Stealth | -11 -10 -10 -9 -9 --------- Run | Yrd Mat Min Mat Min Distress Signals 5 | . 2 . 3 . Communications Jammed . | . . . . . Distress Signals . | . . . . . Times Spotted 56 | . 9 1 40 6 Peak Tracking Total 6 | . 6 1 4 5 Tactical Retreats 2 | . 1 . 1 . Traps | -11 -10 -10 -9 -9 ------- Run | Yrd Mat Min Mat Min Traps Triggered 3 | . 1 . 2 . Indirectly . | . . . . . Trap Hack Attempts . | . . . . . Triggered . | . . . . . Disarmed . | . . . . . Reprogrammed . | . . . . . Reused . | . . . . . Traps Extracted . | . . . . . Installed . | . . . . . Triggered . | . . . . . Machines | -11 -10 -10 -9 -9 ---------- Run | Yrd Mat Min Mat Min Machines Disabled 3 | . . . 3 . Max in Single Turn 1 | . . . 1 . Machines Repaired . | . . . . . Machines Dismantled . | . . . . . Machines Sabotaged . | . . . . . Overloaded Fab Kills . | . . . . . Hacking | -11 -10 -10 -9 -9 --------- Run | Yrd Mat Min Mat Min Machines Accessed 8 | . 2 . 6 . Terminals 8 | . 2 . 6 . Fabricators . | . . . . . Repair Stations . | . . . . . Recycling Units . | . . . . . Scanalyzers . | . . . . . Garrison Access . | . . . . . Total Hacks 18 | . 5 . 13 . Successful 6 | . 1 . 5 . Failed 12 | . 4 . 8 . Catastrophic 4 | . 2 . 2 . Database Lockouts . | . . . . . Manual 9 | . 3 . 6 . Terminals 18 | . 5 . 13 . Fabricators . | . . . . . Repair Stations . | . . . . . Recycling Units . | . . . . . Scanalyzers . | . . . . . Garrison Access . | . . . . . Terminal Hacks 6 | . 1 . 5 . Branch Access Points 1 | . . . 1 . Alert Level 1 | . . . 1 . Unreport Threat 1 | . . . 1 . Recall Investigation 1 | . . . 1 . Registered Components 2 | . 1 . 1 . Fabricator Hacks . | . . . . . Repair Station Hacks . | . . . . . Recycling Unit Hacks . | . . . . . Scanalyzer . | . . . . . Garrison Access Hacks . | . . . . . Unauthorized Hacks . | . . . . . Terminals . | . . . . . Fabricators . | . . . . . Repair Stations . | . . . . . Recycling Units . | . . . . . Scanalyzers . | . . . . . Garrison Access . | . . . . . Data Cores Recovered . | . . . . . Used . | . . . . . Hacking Detections 7 | . 2 . 5 . Full Trace Events 3 | . 1 . 2 . Feedback Events . | . . . . . Feedback Blocked . | . . . . . Robot Schematics Acquired . | . . . . . Robots Built . | . . . . . Authchips . | . . . . . Time . | . . . . . Total Robot Build Rating . | . . . . . Part Schematics Acquired . | . . . . . Parts Built . | . . . . . Authchips . | . . . . . Time . | . . . . . Total Part Build Rating . | . . . . . Parts Repaired . | . . . . . Time . | . . . . . Parts Recycled . | . . . . . Recycled Matter . | . . . . . Retrieved Matter . | . . . . . Retrieved Components . | . . . . . Parts Scanalyzed . | . . . . . Part Schematics Acquired . | . . . . . Parts Damaged . | . . . . . Bothacking | -11 -10 -10 -9 -9 ------------ Run | Yrd Mat Min Mat Min Used RIF Installer . | . . . . . Robots Hacked . | . . . . . Non-combat . | . . . . . Combat . | . . . . . Robot Hacks Applied . | . . . . . Relay Couplers Released . | . . . . . Fabnet Peak Effective % . | . . . . . Robots Rewired . | . . . . . Allies Hacked . | . . . . . Hacks Repelled . | . . . . . Allies | -11 -10 -10 -9 -9 -------- Run | Yrd Mat Min Mat Min Total Allies . | . . . . . Largest Group . | . . . . . Highest-Rated Group . | . . . . . Highest-Rated Ally . | . . . . . Total Orders . | . . . . . Ally Attacks . | . . . . . Total Damage . | . . . . . Kills . | . . . . . Allies Corrupted . | . . . . . Allies Melted . | . . . . . Intel | -11 -10 -10 -9 -9 ------- Run | Yrd Mat Min Mat Min Robot Analysis Total . | . . . . . Derelict Logs Recovered 1 | . . 1 . . Drone Launches . | . . . . . Drone Recoveries . | . . . . . Exploration | -11 -10 -10 -9 -9 ------------- Run | Yrd Mat Min Mat Min Turns Passed 2625 | 103 231 126 1870 295 Spaces Moved 1266 | 62 103 71 871 159 Core 6 | 4 . . 2 . Treads 1260 | 58 103 71 869 159 Legs . | . . . . . Wheels . | . . . . . Hover . | . . . . . Flight . | . . . . . Fastest Speed 50 | 50 160 160 100 160 Average Speed 159 | 153 160 160 160 160 Slowest Speed 300 | 160 160 160 300 160 Overloaded Moves . | . . . . . Propulsion Burnouts . | . . . . . Robots Hopped . | . . . . . Cave-ins Triggered . | . . . . . Exploration Rate (%) 30 | 4 28 22 64 36 Regions Visited 4 Branch Regions 2 Pre-discovered Areas . | . . . . . Known Exits Taken 1 | . . . 1 . Unknown Exits Taken 3 | 1 1 1 . . Scrap Searched 1 | . . . . 1 Spaces Dug . | . . . . . Terrain Destroyed 75 | . . 28 47 . Melee . | . . . . . Projectile . | . . . . . AOE 75 | . . 28 47 . Terrain Rammed . | . . . . . Walls Destroyed . | . . . . . Machines Disabled . | . . . . . Actions | -11 -10 -10 -9 -9 --------- Run | Yrd Mat Min Mat Min Total 1583 | 67 129 78 1122 187 Wait 107 | . . . 90 17 Move 1263 | 62 102 70 870 159 Hop . | . . . . . Pick Up 5 | . . . 5 . Fast Attach 25 | 5 . 3 17 . Attach 6 | . . . 4 2 Detach . | . . . . . Swap 9 | . . . 9 . Drop 9 | . . 2 7 . Fire 151 | . 24 3 116 8 Melee . | . . . . . Ram . | . . . . . Kick . | . . . . . Crush 8 | . 3 . 4 1 Escape Stasis . | . . . . . Rewire . | . . . . . Trap . | . . . . . Miscellaneous . | . . . . . Route ------- -11/Scrapyard -10/Materials (discovered 2 exits: *Mat / [*Min]) -10/Mines -9/Materials (discovered 4 exits: [*Mat x2] / *Min x2) -9/Mines (discovered 2 exits: [*Mat x2]) History --------- Turn | Location | Event 4 | -11/Scrapyard | Discovered new exit (range 16) 104 | -11/Scrapyard | Entered Materials 243 | -10/Materials | Discovered new exit (range 10) 306 | -10/Materials | Discovered new exit (range 12) 314 | -10/Materials | Build established: Mutant 335 | -10/Materials | Entered Mines 406 | -10/Mines | Met a Derelict bent on vengeance 445 | -10/Mines | Discovered new exit (range 4) 461 | -10/Mines | Entered Materials 461 | -9/Materials | Evolved 2 slots: Utility x2 462 | -9/Materials | Identified exit to Mines 1079 | -9/Materials | Discovered new exit (range 11) 1487 | -9/Materials | Discovered new exit (range 14) 1918 | -9/Materials | Lost 3 parts (2u1w) 2106 | -9/Materials | Core integrity fell below 50% 2203 | -9/Materials | Lost 5 parts (3n2u) 2331 | -9/Materials | Entered Mines 2454 | -9/Mines | Found a hidden stash of uninstalled traps 2465 | -9/Mines | Build established: Scavenger-Mutant 2550 | -9/Mines | Discovered new exit (range 2) 2581 | -9/Mines | Discovered new exit (range 8) 2626 | -9/Mines | Self-destructed Last Messages --------------- Found 44 Matter. Acquired 44 matter. G-47 Trooper suffers critical hit (Burn). Beam Rifle destroyed. G-47 Trooper destroyed. Acquired 20 matter. A stash of uninstalled traps is collected here! Slammed into T-07 Excavator. EXIT=FOUND T-07 Excavator is excavating. C-30 ARC bursts open, deploying its payload. L-31 Rogue unfolds itself. G-34 Mercenary unfolds itself. Particle Gun destroyed. U-05 Engineer lays Concrete. T-07 Excavator is excavating. U-05 Engineer lays Concrete. Heat Sink destroyed. Lgt. Treads destroyed. Particle Gun destroyed. Map ----- +----------------------------------------------------+ | ??????????????????????????????????????????? | | ??????????????????????????????????????????? | | ??????????????????????????????????????????? | | ??????????????????????????????????????????? | | ??????????????????????????????????????????? | | ??????????????????????????????????????????? | | ??????????????????????????????????????????? | | ??????????????????????????????????????????? | | ??????????????????????????????????????????? | | ??????????????????????????????????????????? | | ??????????????????????????????????????????? | | ??????????????????????????????????????????? | | ??????????????????????????????????????????? | | ??????????????????????????????????????????? | | ??????????????????????????????????????????? | | ??????????????????????????????????????????? | | ??????????????????????????????????????????? | | ??????????????????????????????????????????? | | ??????????????????????????#??????????? ???? | | ????????????????????????? #??????????# ??# | | ???????????????????????? #??????????# ??# | | ??????????????????????? ##?????????# ### | | ??????????????######## #?????????# ## | | ??????????????? ??????????# # | | ????????????????# ?????????????## | | ????????????????# @#????????????????# | | ????????????????#l #????????????????# | | ????# ?????????# #????????????????# | | ????# ######## g##???????????????# | | ????# gg #???????????????# | | ????# < #???????????????# # | | ????# ###### g##??????????????# ## | | ??????????????# ##?????????????# ## | | ??????????????## ############### | | ???????????????#### "% ### | | ??????????????????## #### ######### ### | | ???????????????????## #??# #?????## < ## | | ????????????????????# #??# ####### #? | | ????????????????????# #?# ##? | | ????????????????????# #?########## ##?? | | ????????????????????## #??????????#####??? | | ???????????????????????##?????????????????? | | ??????????????????????????????????????????? | | ??????????????????????????????????????????? | | ??????????????????????????????????????????? | | ??????????????????????????????????????????? | | ??????????????????????????????????????????? | | | | | | | +----------------------------------------------------+ Best States ------------- Heat Dissipation 68 Energy Generation 14 Energy Capacity 280 Matter Stores 300 Matter Capacity 300 Sight Range 16 Terrain Scan Density 10 Armor Coverage 900 Evasion (%) 40 Recoil Reduction 2 Item Schematics ----------------- None Robot Schematics ------------------ None Fabricated ------------ Nothing Alien Tech Used ----------------- None Achievements -------------- None Challenges ------------ None Game ------ Seed VampiricScrapCleaver Manual? 0 Play Time 00:11:41 Cumulative 73.5 hours Start 2024.08.12 @ 10:54:35 End 2024.08.12 @ 17:27:12 Sessions 3 Manual Loads 0 Difficulty Rogue Special Mode None Game No. 181 Rogue 106 Adventurer 75 Explorer 0 Win Type - Total 0 Types 0/0/0/0/0/0/0/0/0 Lore% 40 Gallery% 43 Achievement% 35 Wizard Run 0 Options --------- Layout 0 ASCII 0 Keyboard 0 Movement Mouse Keybinds 0 Fullscreen 1 Font 24/Smallcaps Map View 76x50 Zoom Use 0% Tactical HUD 0 Map Filters NONE Filters NONE Steam 1 RUN: 932d2034-99c2-48a9-8711-17493c60731a